Cogmind - Beta 13 @@@ ROGUE MODE // 2024.04.02 @ 19:05:15 Player: Ashlemon Result: Destroyed by Y-45 Defender with Heavy Assault Rifle Performance ------------- Evolutions (1) 500 Regions Visited (3) 600 Robots Destroyed (16) 80 Value Destroyed (493) 493 Prototype IDs (0) 0 Alien Tech Used (0) 0 Bonus (0) 0 TOTAL SCORE: 1673 Bonus ------- None Cogmind --------- Core Integrity 0/400 Matter 289/300 Energy 75/100 System Corruption 4% Temperature Cool (9) Movement Treading (170) Location -9/Storage Parts ------- > --- POWER (1) -------- (None) > --- PROPULSION (2) --- Armored Treads > --- UTILITY (4) ------ Large Storage Unit > --- WEAPON (2) ------- (None) > --- INVENTORY (15) --- Hover Unit Heat Sink Heat Sink Large Storage Unit Terrain Scan Processor Particle Charger Particle Charger Improved Power Shielding Improved Power Shielding Light Armor Plating Small Laser Small Laser Particle Gun Peak State ------------ > --- POWER ------------ Improved Ion Engine > --- PROPULSION ------- Armored Treads Armored Treads > --- UTILITY ---------- Heat Sink Large Storage Unit ECM Suite Core Shielding > --- WEAPON ----------- Particle Gun Light Assault Rifle > --- INVENTORY -------- Ion Engine Armored Treads Hover Unit Heat Sink Large Storage Unit Seismic Detector Particle Charger Particle Charger Improved Power Shielding Improved Power Shielding Light Armor Plating Small Laser Grenade Launcher Plasma Cutter [Rating: 17] Favorites ----------- Power Ion Engine Engine Ion Engine Propulsion Armored Treads Treads Armored Treads Wheel Compact Wheel Utility Large Storage Unit Device ECM Suite Storage Large Storage Unit Processor Signal Interpreter Protection Core Shielding Weapon Light Assault Rifle Energy Gun Particle Gun Ballistic Gun Light Assault Rifle Launcher Grenade Launcher Special Weapon Plasma Cutter Build | -11 -10 -9 -9 ------- Run | Yrd Mat Mat Sto Slots Evolved 2 | . . 2 . Power . | . . . . Propulsion . | . . . . Utility 2 | . . 2 . Weapon . | . . . . Parts Attached 29 | 7 2 12 8 Power 4 | 1 . 2 1 Engine 4 | 1 . 2 1 Core . | . . . . Reactor . | . . . . Propulsion 7 | 3 . 2 2 Treads 6 | 2 . 2 2 Leg . | . . . . Wheel 1 | 1 . . . Hover . | . . . . Flight . | . . . . Utility 11 | 1 2 6 2 Device 6 | . . 4 2 Storage 2 | 1 1 . . Processor 2 | . 1 1 . Hackware . | . . . . Protection 1 | . . 1 . Artifact . | . . . . Weapon 7 | 2 . 2 3 Energy Gun 1 | . . . 1 Energy Cannon . | . . . . Ballistic Gun 4 | 2 . 2 . Ballistic Cannon . | . . . . Launcher 1 | . . . 1 Special Weapon 1 | . . . 1 Impact Weapon . | . . . . Slashing Weapon . | . . . . Piercing Weapon . | . . . . Special Melee Weapon . | . . . . Unidentified Prototypes . | . . . . Parts Lost 17 | . . 4 13 Power 3 | . . 1 2 Propulsion 3 | . . . 3 Utility 6 | . . 2 4 Weapon 5 | . . 1 4 Highest Loss Streak 9 | . . 2 9 To Critical Strikes . | . . . . Average Slot Usage (%) 96 | . 99 97 87 Engine 11 | . 14 10 8 Treads 24 | . 28 22 21 Device 11 | . . 19 16 Storage 12 | . 14 11 11 Processor 9 | . 13 9 1 Protection 2 | . . 1 10 Ballistic Gun 22 | . 28 21 10 Naked Turns . | . . . . Heaviest Build 35 | 12 27 32 35 Greatest Support 40 | 40 40 40 40 Greatest Overweight (x) 1 | . . 1 1 Average Overweight (x) . | . . . . Largest Inventory Capacity 15 | 8 15 15 15 Average Capacity 13 | 7 12 15 15 Most Carried 15 | 5 15 15 15 Average Carried 12 | 4 11 14 14 Final Capacity 15 | 8 15 15 15 Final Carried 15 | 5 15 15 13 Class Distribution -------------------- 71% | Mutant 28% | Infiltrator-Mutant Dominant Class ---------------- Mutant | -10/Materials Infiltrator-Mutant | -9/Materials Mutant | -9/Storage Resources | -11 -10 -9 -9 ----------- Run | Yrd Mat Mat Sto Matter Collected 557 | 213 29 215 100 Remotely . | . . . . Salvage Created 470 | . 29 215 226 Parts 35 | . 3 15 17 Haulers Intercepted . | . . . . Recyclers Shooed . | . . . . Parts Field Recycled . | . . . . Retrieved Matter . | . . . . Parts Self-Destructed . | . . . . Prevented . | . . . . Kills | -11 -10 -9 -9 ------- Run | Yrd Mat Mat Sto Combat Hostiles Destroyed 14 | . . 6 8 Melee 2 | . . 1 1 Guns 8 | . . 5 3 AOE 4 | . . . 4 Classes Destroyed 6 | . 1 2 3 Operator 1 | . . . 1 Watcher 1 | . 1 . . Swarmer 3 | . . . 3 Grunt 9 | . . 5 4 Duelist 1 | . . 1 . Sentry 1 | . . . 1 Best Kill Streak 3 | . 1 1 3 Combat Bots Only 3 | . . 1 3 Max Kills in Single Turn 2 | . 1 1 2 Gunslinging . | . . . . Exploded 2 | . . . 2 Melee 1 | . . 1 1 Uniques/NPCs Destroyed . | . . . . Combat | -11 -10 -9 -9 -------- Run | Yrd Mat Mat Sto Hostile Shots Fired 194 | . . 85 109 Missed 51 | . . 28 23 Damage Taken 2429 | . . 926 1503 Core 412 | . . 183 229 Absorbed by Shields . | . . . . Redirected to Shielding 43 | . . . 43 Core Remaining (%) 100 | 100 100 . . Volleys Fired 61 | . 8 25 28 Largest 2 | . 2 2 2 Hottest 85 | . 40 40 85 Shots Fired 112 | . 16 48 48 Gun 103 | . 16 48 39 Cannon . | . . . . Launcher 6 | . . . 6 Special 3 | . . . 3 Kinetic 97 | . 16 48 33 Thermal 9 | . . . 9 Explosive 6 | . . . 6 Electromagnetic . | . . . . Robot Hit Streak 13 | . 5 13 10 Robot Miss Streak 4 | . 3 4 3 Penetration Max . | . . . . Secondary Targets 1 | . . 1 . Max Gunslinging Chain 1 | . . 1 . Shots Hit Robots 71 | . 7 29 35 Core Hits 33 | . 3 11 19 Critical Kills . | . . . . Critical Parts Destroyed 1 | . . . 1 Critical Strikes 1 | . . . 1 Destroy 1 | . . . 1 Melee Attacks . | . . . . Impact . | . . . . Slashing . | . . . . Piercing . | . . . . Sneak Attacks . | . . . . Combat Hostiles . | . . . . Follow-up Attacks . | . . . . Damage Inflicted 796 | . 61 237 498 Guns 539 | . 61 228 250 Cannons . | . . . . Explosions 204 | . . . 204 Melee . | . . . . Ramming 30 | . . 9 21 Kinetic 472 | . 61 228 183 Thermal 90 | . . . 90 Explosive 204 | . . . 204 Electromagnetic . | . . . . Impact . | . . . . Slashing . | . . . . Piercing . | . . . . Highest Corruption 4 | . 2 . 4 Average Corruption 2 | . 2 . 4 Corruption Purged . | . . . . Corruption Blocked . | . . . . Effects 13 | . 5 . 8 Message Errors 4 | . 2 . 2 Matter Fused 4 | . 2 . 2 Energy Discharges 1 | . . . 1 Parts Rejected 1 | . . . 1 Data Loss (minor) 1 | . . . 1 Data Loss (major) 1 | . 1 . . Misfires 1 | . . . 1 Overload Shots . | . . . . Overflow Damage . | . . . . Projectiles . | . . . . Explosions . | . . . . Melee . | . . . . Knockbacks . | . . . . Impact . | . . . . Kinetic . | . . . . Secondary . | . . . . Self-Inflicted Damage 97 | . . . 97 Shots 3 | . . . 3 Rammed 9 | . . 2 7 Targets Rammed 11 | . . 3 8 Kicked . | . . . . Crushed 2 | . . 1 1 Highest Temperature 184 | . . 6 184 Average Temperature 45 | . . 3 60 Received Heat Transfer 708 | . . 297 411 Siege Activations . | . . . . Robots Corrupted . | . . . . Combat Hostiles . | . . . . Parts Fried . | . . . . Impact Corruptions . | . . . . Robots Melted . | . . . . Combat Hostiles . | . . . . Parts Melted . | . . . . Heat Transferred 222 | . . . 222 Parts Sabotaged . | . . . . Parts Stolen . | . . . . Parts Stripped . | . . . . Power Chain Reactions . | . . . . Alert | -11 -10 -9 -9 ------- Run | Yrd Mat Mat Sto Peak Influence 324 | . 7 105 324 Initial 44 | . . . 44 Average 41 | . 2 29 163 Maximum Alert Level 1 | . . . 1 Low Security (%) 93 | 100 100 100 62 Level 1 6 | . . . 37 Level 2 . | . . . . Level 3 . | . . . . Level 4 . | . . . . Level 5 . | . . . . High Security . | . . . . Max Security . | . . . . Squads Dispatched 4 | . . 2 2 Investigation . | . . . . Extermination . | . . . . Reinforcement 4 | . . 2 2 Assault . | . . . . Garrison . | . . . . Intercept . | . . . . Searches Triggered . | . . . . Construction Impeded . | . . . . Haulers Reinforced . | . . . . Active Scanning Responses . | . . . . Cargo Convoy Interrupts . | . . . . Stealth | -11 -10 -9 -9 --------- Run | Yrd Mat Mat Sto Distress Signals 1 | . . 1 . Communications Jammed . | . . . . Distress Signals . | . . . . Times Spotted 30 | . 4 12 14 Peak Tracking Total 3 | . 2 3 3 Tactical Retreats 4 | . . 3 1 Traps | -11 -10 -9 -9 ------- Run | Yrd Mat Mat Sto Traps Triggered 2 | . 1 . 1 Indirectly . | . . . . Trap Hack Attempts . | . . . . Triggered . | . . . . Disarmed . | . . . . Reprogrammed . | . . . . Reused . | . . . . Traps Extracted . | . . . . Installed . | . . . . Triggered . | . . . . Machines | -11 -10 -9 -9 ---------- Run | Yrd Mat Mat Sto Machines Disabled 2 | . . . 2 Max in Single Turn 1 | . . . 1 Machines Repaired . | . . . . Machines Dismantled . | . . . . Machines Sabotaged . | . . . . Overloaded Fab Kills . | . . . . Hacking | -11 -10 -9 -9 --------- Run | Yrd Mat Mat Sto Machines Accessed 4 | . 1 . 3 Terminals 4 | . 1 . 3 Fabricators . | . . . . Repair Stations . | . . . . Recycling Units . | . . . . Scanalyzers . | . . . . Garrison Access . | . . . . Total Hacks 5 | . 1 . 4 Successful 5 | . 1 . 4 Failed . | . . . . Catastrophic . | . . . . Database Lockouts . | . . . . Manual . | . . . . Terminals 5 | . 1 . 4 Fabricators . | . . . . Repair Stations . | . . . . Recycling Units . | . . . . Scanalyzers . | . . . . Garrison Access . | . . . . Terminal Hacks 5 | . 1 . 4 Record 1 | . . . 1 Part Schematic 1 | . . . 1 Alert Level 2 | . 1 . 1 Dispatch Records 1 | . . . 1 Fabricator Hacks . | . . . . Repair Station Hacks . | . . . . Recycling Unit Hacks . | . . . . Scanalyzer . | . . . . Garrison Access Hacks . | . . . . Unauthorized Hacks . | . . . . Terminals . | . . . . Fabricators . | . . . . Repair Stations . | . . . . Recycling Units . | . . . . Scanalyzers . | . . . . Garrison Access . | . . . . Data Cores Recovered . | . . . . Used . | . . . . Hacking Detections 1 | . . . 1 Full Trace Events . | . . . . Feedback Events . | . . . . Feedback Blocked . | . . . . Robot Schematics Acquired . | . . . . Robots Built . | . . . . Authchips . | . . . . Time . | . . . . Total Robot Build Rating . | . . . . Part Schematics Acquired 1 | . . . 1 Parts Built . | . . . . Authchips . | . . . . Time . | . . . . Total Part Build Rating . | . . . . Parts Repaired . | . . . . Time . | . . . . Parts Recycled . | . . . . Recycled Matter . | . . . . Retrieved Matter . | . . . . Retrieved Components . | . . . . Parts Scanalyzed . | . . . . Part Schematics Acquired . | . . . . Parts Damaged . | . . . . Bothacking | -11 -10 -9 -9 ------------ Run | Yrd Mat Mat Sto Used RIF Installer . | . . . . Robots Hacked . | . . . . Non-combat . | . . . . Combat . | . . . . Robot Hacks Applied . | . . . . Relay Couplers Released . | . . . . Fabnet Peak Effective % . | . . . . Robots Rewired . | . . . . Allies Hacked . | . . . . Hacks Repelled . | . . . . Allies | -11 -10 -9 -9 -------- Run | Yrd Mat Mat Sto Total Allies . | . . . . Largest Group . | . . . . Highest-Rated Group . | . . . . Highest-Rated Ally . | . . . . Total Orders . | . . . . Ally Attacks . | . . . . Total Damage . | . . . . Kills . | . . . . Allies Corrupted . | . . . . Allies Melted . | . . . . Intel | -11 -10 -9 -9 ------- Run | Yrd Mat Mat Sto Robot Analysis Total . | . . . . Derelict Logs Recovered . | . . . . Drone Launches . | . . . . Drone Recoveries . | . . . . Exploration | -11 -10 -9 -9 ------------- Run | Yrd Mat Mat Sto Turns Passed 1947 | 178 671 743 355 Spaces Moved 1031 | 107 396 381 147 Core 4 | 4 . . . Treads 1018 | 94 396 381 147 Legs . | . . . . Wheels 9 | 9 . . . Hover . | . . . . Flight . | . . . . Fastest Speed 50 | 50 160 160 170 Average Speed 164 | 150 160 169 172 Slowest Speed 250 | 160 160 250 250 Overloaded Moves . | . . . . Propulsion Burnouts . | . . . . Robots Hopped . | . . . . Cave-ins Triggered 1 | . . . 1 Exploration Rate (%) 21 | 5 36 14 31 Regions Visited 3 Branch Regions 1 Pre-discovered Areas . | . . . . Known Exits Taken 2 | . 1 1 . Unknown Exits Taken 1 | 1 . . . Scrap Searched . | . . . . Spaces Dug . | . . . . Terrain Destroyed 33 | . . . 33 Melee . | . . . . Projectile . | . . . . AOE 33 | . . . 33 Terrain Rammed . | . . . . Walls Destroyed . | . . . . Machines Disabled . | . . . . Actions | -11 -10 -9 -9 --------- Run | Yrd Mat Mat Sto Total 1181 | 122 421 440 198 Wait 3 | . . . 3 Move 1028 | 106 395 380 147 Hop . | . . . . Pick Up 36 | 8 13 11 4 Fast Attach 11 | 4 1 5 1 Attach 14 | 3 . 5 6 Detach . | . . . . Swap 4 | . 1 2 1 Drop 13 | 1 3 9 . Fire 61 | . 8 25 28 Melee . | . . . . Ram . | . . . . Kick . | . . . . Crush 11 | . . 3 8 Escape Stasis . | . . . . Rewire . | . . . . Trap . | . . . . Miscellaneous . | . . . . Route ------- -11/Scrapyard -10/Materials (discovered 3 exits: *Mat / *Min / [*Sub]) -9/Materials -9/Storage History --------- Turn | Location | Event 20 | -11/Scrapyard | Discovered new exit (range 15) 179 | -11/Scrapyard | Entered Materials 313 | -10/Materials | Build established: Mutant 336 | -10/Materials | Discovered new exit (range 10) 435 | -10/Materials | Discovered new exit (range 9) 554 | -10/Materials | Identified exit to Materials 657 | -10/Materials | Discovered new exit (range 16) 803 | -10/Materials | Identified exit to Mines 850 | -10/Materials | Entered another Materials area 850 | -9/Materials | Evolved 2 slots: Utility x2 851 | -9/Materials | Discovered new exit (range 15) 909 | -9/Materials | Identified exit to Storage 1182 | -9/Materials | Build established: Infiltrator-Mutant 1593 | -9/Materials | Entered Storage 1649 | -9/Storage | Crushed by falling debris 1649 | -9/Storage | Core integrity fell below 50% 1684 | -9/Storage | Lost 3 parts (1n1u1w) 1726 | -9/Storage | Build established: Mutant 1872 | -9/Storage | Core integrity fell below 20% 1948 | -9/Storage | Destroyed by Y-45 Defender with Heavy Assault Rifle Last Messages --------------- S-10 Pest destroyed. Grenade Launcher destroyed. Crushed S-10 Pest. S-10 Pest destroyed. K-01 Serf collects debris. Arm. Treads destroyed. Critical hit (Burn: +37). Ion Engine destroyed. Slammed into Y-45 Defender. Lgt. Assault Rifle destroyed. Slammed into Y-45 Defender. Seismic Detector destroyed. Slammed into Y-45 Defender. R-06 Scavenger collects Flight Unit. Plasma Cutter destroyed. Slammed into Y-45 Defender. System corrupted: Matter fused (-9). ECM Suite destroyed. Core Shielding destroyed. Arm. Treads destroyed. Map ----- +----------------------------------------------------+ | ?????????????????????????????????????????# """ | | ?????????????????????????????????????????## """ | | ??????????????????????????????????????????# """ | | ??????????????????????????????????????????# | | ??????????????????????????????????????????######+# | | ???????????????????????????????????????????????# # | | ???????????????????????????????????????????????# # | | ??????????????????????????????????????????????## # | | ??????????????????????????????????????????????# | | ??????????????????????????????????????????????# | | ???????????????????????????????? ???#######?## | | ??????????????????????????????? """??# =T ### [ | | ???????????????????????????? """??# %% % | | ??????????????????????????# """"?# "" # | | ??????????????????????????# """"### "" # | | ??????????????????????????# / / "" " # | | ??????????????????????????# # #*"""" # | | ??????????????????????????# # # # | | ??????????????????????????## ##"T"#?# #### ### | | ??????????????????????????????#"""??# #??###?# | | ??????????????????????????????###???# #??????##### | | ????????????????????????????????????# #??????????? | | ????????????????????????????????????# #??????????? | | ?????????????##"T"################### ###????????? | | ?????????? r Y #????????? | | ?????????? @ Y +????????? | | ?????????? #????????? | | ???????????####+#######+############### #????????? | | ??????????????????????????????????????? #????????? | | ??????????????????????????????????????? #????????? | | ??????????????????????????????????????? ????????? | | ???????????????????????????????????????? ????????? | | ???????????????????????????????????????? ???????? | | ???????????????????????????????????????? ???????? | | ????????????????????????????????????????? ???????? | | ????????????????????????????????????????? ??????? | | ?????????????????????????????????????????##??????? | | ?????????????????????????????????????????????????? | | ?????????????????????????????????????????????????? | | ?????????????????????????????????????????????????? | | ?????????????????????????????????????????????????? | | ?????????????????????????????????????????????????? | | ?????????????????????????????????????????????????? | | ?????????????????????????????????????????????????? | | ?????????????????????????????????????????????????? | | ?????????????????????????????????????????????????? | | ?????????????????????????????????????????????????? | | | | | | | +----------------------------------------------------+ Best States ------------- Heat Dissipation 38 Energy Generation 12 Energy Capacity 265 Matter Stores 300 Matter Capacity 300 Sight Range 16 Terrain Scan Density 10 ECM Strength 1 Core Shielding 20 Evasion (%) 40 Targeting Accuracy 5 Recoil Reduction 2 Item Schematics ----------------- Axe | -9/Storage | Hacked Robot Schematics ------------------ None Fabricated ------------ Nothing Alien Tech Used ----------------- None Achievements -------------- Let's See Who's Tougher Unlikely Earthworm Challenges ------------ None Game ------ Seed BombMolecularStorage Manual? 0 Play Time 00:22:16 Cumulative 1.4 hours Start 2024.04.02 @ 18:44:09 End 2024.04.02 @ 19:05:15 Sessions 1 Manual Loads 0 Difficulty Rogue Special Mode None Game No. 4 Rogue 4 Adventurer 0 Explorer 0 Win Type - Total 0 Types 0/0/0/0/0/0/0/0/0 Lore% 0 Gallery% 4 Achievement% 3 Wizard Run 0 Options --------- Layout 1 ASCII 0 Keyboard 1 Movement Arrows Keybinds 0 Fullscreen 1 Font 24/Smallcaps Map View 50x35 Zoom Use 0% Tactical HUD 0 Map Filters NONE Filters NONE Steam 1 RUN: fa7d1916-0d24-4bb7-8814-02582b496cc1